fUSD/lending_fUSD_20250607
["ID","MTS","AMOUNT","RATE_DAILY","PERIOD"]
[364930480,1749310234647,-400.40194,0.00019685,2]
[364930481,1749310234657,-400.40194,0.00019685,2]
[364930482,1749310234667,-342.10705,0.00019685,2]
[364930483,1749310234677,-342.10705,0.00019685,2]
[364930484,1749310234687,-212.165329,0.00019685,2]
[364930485,1749310234697,-212.165329,0.00019685,2]
[364930486,1749310234707,-151.0,0.00019685,2]
[364930487,1749310234716,-151.0,0.00019685,2]
[364930488,1749310234726,-153.2640347,0.00019685,2]
[364930489,1749310234737,-300.0,0.00019686,2]
[364930490,1749310234747,-1135.052508,0.00019686,2]
[364930491,1749310234757,-250.957019,0.00019686,2]
[364930492,1749310234767,-1135.052508,0.00019686,2]
[364930493,1749310234777,-2083.947237,0.00019686,2]
[364930494,1749310234787,-2083.947237,0.00019686,2]
[364930495,1749310234796,-151.0,0.00019686,2]
[364930496,1749310234805,-151.0,0.00019686,2]
[364930497,1749310234815,-400.40194,0.00019686,2]
[364930498,1749310234824,-400.40194,0.00019686,2]
[364930499,1749310234834,-400.40194,0.00019686,2]
[364930500,1749310234844,-400.40194,0.00019686,2]
[364930501,1749310234853,-342.10705,0.00019686,2]
[364930502,1749310234863,-342.10705,0.00019686,2]
[364930503,1749310234873,-212.165329,0.00019686,2]
[364930504,1749310234882,-241.744721,0.00019686,2]
[364930505,1749310234892,-212.165329,0.00019686,2]
[364930506,1749310234906,-241.744721,0.00019686,2]
[364930507,1749310234916,-151.0,0.00019686,2]
[364930508,1749310234926,-200.157319,0.00019686,2]
[364930509,1749310234936,-151.0,0.00019686,2]
[364930510,1749310234946,-500.0,0.00019686,2]
[364930511,1749310234956,-500.0,0.00019686,2]
[364930512,1749310234965,-310.98624394,0.00019686,2]
[364930513,1749310234976,-255.89564624,0.00019686,2]
[364930514,1749310234987,-300.0,0.00019686,2]
[364930515,1749310234997,-43513.91203746,0.00019687,2]
[364930516,1749310235014,-10553.10553001,0.00019687,2]
[364930517,1749310235025,-603.84235597,0.00019687,2]
[364930518,1749310238499,-151.0,0.00019595,2]
[364930519,1749310238510,-151.0,0.00019673,2]
[364930520,1749310238520,-271.080303,0.00019683,2]
[364930521,1749310238530,-500.0,0.00019686,2]
[364930522,1749310238540,-7359.34271164,0.00019687,2]
[364930523,1749310238551,-530.06227804,0.00019687,2]
[364930525,1749310238563,-302.52000004,0.00019687,2]
[364930526,1749310238574,-329.1532605,0.00019687,2]
[364930527,1749310238586,-71831.87460426,0.00019687,2]
[364930528,1749310238595,-162854.23106044,0.00019687,2]
[364930678,1749310240514,-151.0,0.000195,2]
[364930680,1749310240524,-8323.94,0.00019687,2]
[364930682,1749310240539,-69080.5564339,0.00019687,2]
[364930684,1749310240554,-67093.42388876,0.00019687,2]
[364930687,1749310240568,-90778.98366532,0.00019687,2]
[364930722,1749310543736,1563.3,0.000175,120]
[364930724,1749310709805,1043.49,0.00016648,2]
[364930726,1749310885511,325.05,0.00013699,2]
[364930763,1749311337670,-362.0,0.00017387,2]
[364930764,1749311337696,-362.0,0.00017818,2]
[364930765,1749311337722,-362.0,0.00018248,3]
[364930766,1749311337747,-375.0,0.00018356,2]
[364930767,1749311337772,-1000.0,0.00018451,2]
[364930768,1749311337799,-262.53,0.00018499,2]
[364930769,1749311337829,-593.94,0.00018563,2]
[364930770,1749311337855,-1609.59186566,0.00018596,2]
[364930771,1749311337882,-250.0,0.00018596,2]
[364930772,1749311337911,-1200.0,0.00018605,2]
[364930773,1749311341234,300.0,0.00018605,2]
[364930774,1749311352196,202.0,0.00017387,2]
[364930779,1749311402922,1200.0,0.00018605,2]
[364930781,1749311411547,353.0,0.00017678,2]
[364930782,1749311411807,353.0,0.00018106,2]
[364930783,1749311412086,353.0,0.00018533,3]
[364930784,1749311424005,61.93813434,0.00018601,2]
[364930953,1749311440100,-250.44789251,0.000186,2]
[364930954,1749311440172,-317.24247825,0.000186,2]
[364930955,1749311440183,-3978.27855514,0.00018601,2]
[364930958,1749311442806,-1454.97318599,0.00018601,2]
[364930968,1749311445931,-202.00002,0.00017678,2]
[364930969,1749311445942,-140.28135107,0.00018499,2]
[364931001,1749311730493,1167.44,0.00016077,2]
[364931002,1749311877717,1828.9,0.00017004,2]
[364931006,1749312122090,308.79,0.00013699,2]
[364931008,1749312131788,342.0,0.00016961,2]
[364931010,1749312148705,5000.0,0.00017004,2]
[364931013,1749312372795,1414.1,0.00016832,30]
[364931034,1749312492105,339.0,0.00016396,2]
[364931035,1749312492374,339.0,0.00016836,2]
[364931039,1749312631751,-339.0,0.00017277,3]
[364931040,1749312631762,-762.8,0.00017456,2]
[364931041,1749312631772,-150.0,0.00017456,7]
[364931042,1749312631782,-126.06398066,0.00017484,2]
[364931043,1749312631833,-123.93601934,0.00017484,2]
[364931044,1749312631843,-167.56,0.00017513,2]
[364931045,1749312631853,-27.72458003,0.00017593,2]
[364931046,1749312631865,-472.27541997,0.00017593,2]
[364931047,1749312631875,-873.95752359,0.0001761,2]
[364931048,1749312631884,-246.10102154,0.0001761,2]
[364931049,1749312631933,-500.0,0.0001761,2]
[364931050,1749312631945,-253.89897846,0.0001761,2]
[364931051,1749312631955,-200.0,0.00017651,2]
[364931052,1749312631965,-156.54916338,0.00017717,3]
[364931053,1749312631977,-182.45083662,0.00017717,3]
[364931054,1749312631987,-164.3,0.00017731,2]
[364931055,1749312631996,-262.53,0.00017831,2]
[364931056,1749312632006,-159.87,0.00017899,2]
[364931057,1749312632017,-339.0,0.00018157,4]
[364931058,1749312632029,-159.04916338,0.00018341,2]
[364931059,1749312632041,-783.42015081,0.00018341,2]
[364931060,1749312632053,-224.97068581,0.00018341,2]
[364931061,1749312632063,-346.07681679,0.00018381,2]
[364931062,1749312632073,-1200.0,0.00018478,2]
[364931063,1749312632083,-300.0,0.00018479,2]
[364931064,1749312632092,-23900.0,0.0001848,2]
[364931066,1749312632102,-18200.96783253,0.00018491,2]
[364931068,1749312632112,-1770.91864893,0.00018499,2]
[364931069,1749312632122,-31863.2184,0.00018501,2]
[364931070,1749312632133,-3433.995,0.00018501,2]
[364931071,1749312632143,-1000.0,0.00018505,2]
[364931072,1749312632153,-213.81846587,0.00018505,2]
[364931073,1749312632162,-574.7391127,0.00018505,2]
[364931074,1749312632172,-153.0593,0.00018518,2]
[364931075,1749312632182,-350.0,0.00018586,2]
[364931076,1749312632192,-339.0,0.00018598,4]
[364931077,1749312632202,-397.38325953,0.00018604,2]
[364931078,1749312632212,-4295.57866985,0.00018605,2]
[364931079,1749312632235,-15628.44816288,0.00018605,2]
[364931080,1749312632252,-2697.319625,0.00018605,2]
[364931083,1749312637754,-1984.89514065,0.00018605,2]
[364931084,1749312637766,-1051.74850456,0.00018605,2]
[364931085,1749312637928,-3347.96100243,0.00018605,2]
[364931086,1749312637941,-40113.232186,0.00018605,2]
[364931091,1749312639913,-4920.62826518,0.00018605,2]
[364931092,1749312639926,-5306.87865757,0.00018605,2]
[364931093,1749312639938,-21157.5033103,0.00018605,2]
[364931095,1749312641441,202.0,0.00016396,2]
[364931117,1749312645849,-893.58359988,0.00018605,2]
[364931118,1749312696693,1130.49,0.00016476,2]
[364931130,1749313208037,808.89077,7.945e-05,2]
[364931131,1749313211522,319.0,0.00017038,2]
[364931132,1749313235462,335.21,0.00013699,2]
[364931134,1749313239970,183.03,0.00016712,2]
[364931141,1749313510774,836.30571687,0.000154,2]
[364931142,1749313520427,670.70624452,9e-05,2]
[364931144,1749313537424,16125.2315575,9e-05,2]
[364931148,1749313571659,316.0,0.00016472,2]
[364931149,1749313571907,316.0,0.00016912,2]
[364931166,1749313695424,298.48087799,0.0001439,2]
[364931167,1749313709120,174.87941646,7.888e-05,2]
[364931169,1749313725447,1370.06542519,0.00010136,2]
[364931170,1749313725744,1237.74270302,0.00013368,2]
[364931178,1749313831999,-218.2577511,0.00017318,2]
[364931179,1749313832009,-316.0,0.00017352,3]
[364931180,1749313832019,-300.0,0.00017362,2]
[364931181,1749313832029,-1200.0,0.00017399,2]
[364931182,1749313832039,-13942.0,0.000174,3]
[364931183,1749313832048,-300.0,0.00017418,2]
[364931184,1749313832058,-300.0,0.00017422,2]
[364931185,1749313832068,-2028.65,0.00017472,5]
[364931186,1749313832078,-150.0,0.00017478,7]
[364931187,1749313832087,-23900.0,0.00017515,2]
[364931188,1749313832097,-250.0,0.00017534,2]
[364931189,1749313832107,-1000.0,0.00017638,2]
[364931190,1749313832117,-164.24,0.0001779,2]
[364931191,1749313832127,-316.0,0.00017791,3]
[364931192,1749313832137,-250.0,0.00017983,2]
[364931193,1749313832147,-277.0,0.00018006,2]
[364931194,1749313832156,-435.54,0.00018006,2]
[364931195,1749313832166,-316.0,0.00018231,4]
[364931196,1749313832175,-475.15,0.00018348,2]
[364931197,1749313832185,-182.38312279,0.00018507,2]
[364931198,1749313832194,-4101.12545085,0.00018507,2]
[364931199,1749313832204,-165.68150263,0.00018507,2]
[364931200,1749313832214,-855.58375823,0.0001852,2]
[364931201,1749313832223,-733.5143,0.00018605,2]
[364931202,1749313832234,-200.0,0.00018605,2]
[364931203,1749313832244,-200.0,0.00018605,2]
[364931204,1749313832254,-176.47706588,0.00018606,2]
[364931205,1749313832264,-278.16828167,0.00018606,2]
[364931206,1749313832273,-800.07450599,0.00018607,2]
[364931207,1749313832283,-219755.6725,0.00018607,2]
[364931208,1749313832293,-13209.3401683,0.00018607,2]
[364931209,1749313832302,-20654.7387266,0.00018607,2]
[364931210,1749313832312,-16142.28651386,0.00018607,2]
[364931211,1749313832325,-1906.2379134,0.00018607,2]
[364931214,1749313832337,-12844.39339006,0.00018607,2]
[364931216,1749313836786,-676.290027,0.00018607,2]
[364931217,1749313836840,-1341.98735807,0.00018607,2]
[364931218,1749313836854,-278.93491413,0.00018607,2]
[364931315,1749313838018,-10483.51315218,0.00018607,2]
[364931316,1749313838029,-5854.0168583,0.00018607,2]
[364931317,1749313838039,-46156.28344656,0.00018607,2]
[364931318,1749313838051,-21500.0,0.00018607,2]
[364931319,1749313838062,-42387.21259275,0.00018607,2]
[364931320,1749313838074,-5494.56751047,0.00018607,2]
[364931503,1749313839966,-1314.8802207,0.00018607,2]
[364931506,1749313839979,-2410.285,0.00018607,2]
[364931522,1749313840129,-270.49382723,0.00018606,2]
[364931524,1749313840139,-1720.83816717,0.00018607,2]
[364931527,1749313840152,-987.97649591,0.00018607,2]
[364931529,1749313840164,-762.67050846,0.00018607,2]
[364931542,1749313840283,-1281.74514084,0.00018607,2]
[364931549,1749313840344,-16391.2550365,0.00018607,2]
[364931556,1749313840400,-4132.01204724,0.00018607,2]
[364931558,1749313840411,-1127.36151,0.00018607,2]
[364931560,1749313840422,-4603.35074706,0.0001862,2]
[364931646,1749313841344,203.0,0.00016472,2]
[364931668,1749313846157,-377.37844347,0.00018606,2]
[364931669,1749313846167,-500.0,0.00018606,2]
[364931670,1749313846178,-382.49945952,0.00018606,2]
[364931671,1749313846188,-22.63467194,0.00018606,2]
[364931822,1749313870890,1335.32,0.00016178,2]
[364931828,1749314278656,1000.0,0.00015963,2]
[364931829,1749314291526,300.0,0.00016671,2]
[364931830,1749314292571,-242.62226491,0.00017108,2]
[364931831,1749314295299,-57.37773509,0.00017108,2]
[364931832,1749314295323,-150.0,0.00017477,2]
[364931833,1749314295349,-55.37840693,0.00017546,3]
[364931834,1749314310604,326.0,0.000135,5]
[364931836,1749314338492,326.45,0.00013699,2]
[364931837,1749314339829,-205.37840693,0.00017091,2]
[364931839,1749314346145,-296.34420104,0.00017091,2]
[364931840,1749314346218,596.5,0.00016963,2]
[364931841,1749314349982,-233.47180927,0.00017091,2]
[364931842,1749314352075,-45.1562667,0.00017091,2]
[364931843,1749314372452,530.0,0.000135,5]
[364931847,1749314518341,1000.0,0.00015959,2]
[364931849,1749314651569,294.0,0.00016546,2]
[364931850,1749314651801,294.0,0.00016985,2]
[364931885,1749314842513,-150.0,0.00017252,7]
[364931886,1749314885587,-10487.98,0.00019,20]
[364931887,1749314885637,-2100.0,0.000195,7]
[364931888,1749314885667,-425.355225,0.00019564,7]
[364931889,1749314885698,-3200.0,0.000196,7]
[364931890,1749314885733,-6644.92473006,0.00019695,7]
[364931892,1749314949106,151.0,0.00016939,2]
[364931893,1749314957212,150.0,0.00017015,2]
[364931894,1749314957370,150.0,0.00017007,2]
[364931895,1749314957657,150.0,0.00016884,2]
[364931896,1749314957766,-150.0,0.00017083,2]
[364931904,1749315005292,-162.8776563,0.00017114,2]
[364931905,1749315006819,-17.89658637,0.00017114,2]
[364931906,1749315011633,288.0,0.00016424,2]
[364931907,1749315011886,288.0,0.00016864,2]
[364931908,1749315021341,358.0,0.00015,5]
[364931913,1749315032153,-1000.0,0.00017192,2]
[364931914,1749315032163,-300.0,0.00017201,2]
[364931915,1749315032173,-957.94571312,0.00017208,2]
[364931916,1749315032185,-242.05428688,0.00017208,2]
[364931917,1749315032195,-683.90049584,0.00017209,2]
[364931918,1749315032439,-23216.09950416,0.00017209,2]
[364931919,1749315032449,-300.0,0.00017214,2]
[364931921,1749315032459,-300.0,0.00017216,2]
[364931923,1749315032469,-250.0,0.00017228,2]
[364931924,1749315032481,-1000.0,0.00017282,2]
[364931925,1749315032492,-288.0,0.00017304,3]
[364931926,1749315032502,-300.0,0.00017369,2]
[364931928,1749315032512,-150.0,0.00017533,2]
[364931930,1749315032522,-4526.17058512,0.00017589,2]
[364931932,1749315032533,-7951.8109724,0.0001759,2]
[364931933,1749315032543,-73310.18630249,0.0001759,2]
[364931936,1749315032568,-20998.60703081,0.0001759,2]
[364931938,1749315032577,-217.77,0.00017603,2]
[364931940,1749315032587,-150.0,0.00017619,2]
[364931941,1749315032597,-453.4,0.00017631,2]
[364931944,1749315032607,-150.0,0.00017667,2]
[364931946,1749315032617,-497.32,0.00017695,2]
[364931947,1749315032627,-461.04,0.00017697,2]
[364931949,1749315032638,-461.04,0.00017697,2]
[364931951,1749315032648,-170.33,0.00017736,2]
[364931953,1749315032658,-288.0,0.00017744,3]
[364931955,1749315032668,-165.85,0.00017757,2]
[364931957,1749315032678,-461.04,0.000178,2]
[364931959,1749315032687,-150.0,0.00017808,2]
[364931961,1749315032697,-150.0,0.00017841,2]
[364931963,1749315032707,-150.0,0.00017952,2]
[364931965,1749315032717,-150.0,0.00017953,2]
[364931967,1749315032727,-150.0,0.00017995,2]
[364931969,1749315032737,-300.0,0.00017997,2]
[364931971,1749315032748,-34283.31874409,0.00018,2]
[364931972,1749315032757,-150.0,0.0001801,2]
[364931973,1749315032766,-150.0,0.00018016,2]
[364931974,1749315032776,-150.0,0.00018057,2]
[364931975,1749315032786,-150.0,0.00018064,2]
[364931976,1749315032797,-150.0,0.00018098,2]
[364931977,1749315032806,-150.0,0.00018147,2]
[364931978,1749315032816,-288.0,0.00018184,4]
[364931979,1749315032825,-1000.0,0.00018188,2]
[364931980,1749315032834,-150.0,0.00018222,2]
[364931981,1749315032848,-421.806065,0.00018247,2]
[364931982,1749315032858,-150.0,0.0001829,2]
[364931983,1749315032867,-150.0,0.00018294,2]
[364931984,1749315032876,-150.0,0.00018343,2]
[364932001,1749315032886,-226.4065412,0.00018366,2]
[364932003,1749315033171,-1000.0,0.00018367,2]
[364932005,1749315033182,-150.0,0.00018377,2]
[364932007,1749315033192,-150.0,0.00018421,2]
[364932009,1749315033202,-1000.0,0.00018439,2]
[364932011,1749315033211,-150.0,0.00018439,2]
[364932013,1749315033221,-1335.32,0.00018441,2]
[364932015,1749315033231,-150.0,0.00018456,2]
[364932017,1749315033240,-150.0,0.00018468,2]
[364932019,1749315033249,-1000.0,0.0001847,2]
[364932021,1749315033259,-150.0,0.00018482,2]
[364932023,1749315033268,-1000.0,0.00018485,2]
[364932025,1749315033278,-150.0,0.00018488,2]
[364932027,1749315033289,-707.83,0.000185,2]
[364932029,1749315033299,-1000.0,0.00018504,2]
[364932031,1749315033310,-9464.95259354,0.00018511,2]
[364932033,1749315033320,-157.3272802,0.00018511,2]
[364932035,1749315033331,-945.35189281,0.00018524,2]
[364932037,1749315033340,-585.55226982,0.00018529,2]
[364932039,1749315033351,-150.0,0.00018567,2]
[364932041,1749315033361,-1000.0,0.00018576,2]
[364932043,1749315033371,-626.93,0.00018601,3]
[364932044,1749315033383,-150.0,0.00018601,2]
[364932046,1749315033394,-150.0,0.00018604,2]
[364932048,1749315033412,-312.87962518,0.0001861,2]
[364932051,1749315033425,-200.2388727,0.0001861,2]
[364932053,1749315033436,-181.76211681,0.0001861,2]
[364932054,1749315033446,-230.937223,0.0001861,2]
[364932057,1749315033455,-194.71779717,0.0001861,2]
[364932059,1749315033466,-151.0,0.00018611,2]
[364932060,1749315033476,-151.0,0.00018611,2]
[364932064,1749315033497,-151.0,0.00018611,2]
[364932066,1749315033509,-151.0,0.00018611,2]
[364932068,1749315033519,-151.0,0.00018611,2]
[364932070,1749315033529,-151.0,0.00018611,2]
[364932072,1749315033542,-151.0,0.00018611,2]
[364932074,1749315033552,-151.0,0.00018611,2]
[364932076,1749315033562,-151.0,0.00018611,2]
[364932078,1749315033572,-151.0,0.00018611,2]
[364932080,1749315033583,-151.0,0.00018611,2]
[364932082,1749315033593,-156.2822692,0.00018611,2]
[364932084,1749315033603,-1171.3060642,0.00018611,2]
[364932086,1749315033613,-151.0,0.00018611,2]
[364932088,1749315033625,-26062.8234055,0.00018611,2]
[364932090,1749315033636,-150.0,0.00018611,2]
[364932092,1749315033647,-150.0,0.00018611,2]
[364932094,1749315033657,-500.0,0.00018611,2]
[364932096,1749315033667,-150.0,0.00018611,2]
[364932098,1749315033678,-150.0,0.00018611,2]
[364932100,1749315033688,-150.0,0.00018611,2]
[364932103,1749315033698,-150.0,0.00018611,2]
[364932105,1749315033709,-150.0,0.00018611,2]
[364932106,1749315033718,-151.89926507,0.00018611,2]
[364932108,1749315033728,-150.0,0.00018611,2]
[364932110,1749315033738,-150.0,0.00018611,2]
[364932112,1749315033748,-150.0,0.00018611,2]
[364932114,1749315033759,-151.0,0.00018611,2]
[364932117,1749315033769,-813.151626,0.00018611,2]
[364932119,1749315033779,-813.151626,0.00018611,2]
[364932121,1749315033791,-150.0,0.00018611,2]
[364932123,1749315033803,-3014.0,0.00018611,2]
[364932125,1749315033814,-150.0,0.00018611,2]
[364932127,1749315033824,-151.0,0.00018611,2]
[364932129,1749315033835,-151.0,0.00018611,2]
[364932131,1749315033846,-500.0,0.00018611,2]
[364932133,1749315033858,-150.0,0.00018611,2]
[364932135,1749315033869,-150.3357755,0.00018611,2]
[364932137,1749315033880,-151.0,0.00018611,2]
[364932139,1749315033892,-1110.0,0.00018611,2]
[364932141,1749315033903,-187.23559085,0.0001862,2]
[364932143,1749315033915,-194.89262063,0.0001862,2]
[364932146,1749315033931,-156.68372719,0.0001862,2]
[364932148,1749315033942,-151.0,0.00018624,2]
[364932150,1749315033953,-151.0,0.00018624,2]
[364932152,1749315033963,-151.0,0.00018624,2]
[364932154,1749315033974,-151.0,0.00018624,2]
[364932156,1749315033984,-151.0,0.00018624,2]
[364932158,1749315033995,-151.0,0.00018624,2]
[364932160,1749315034006,-151.0,0.00018624,2]
[364932162,1749315034016,-151.0,0.00018624,2]
[364932164,1749315034027,-151.0,0.00018624,2]
[364932166,1749315034039,-151.0,0.00018624,2]
[364932168,1749315034049,-151.0,0.00018624,2]
[364932170,1749315034059,-151.0,0.00018624,2]
[364932172,1749315034071,-151.0,0.00018624,2]
[364932175,1749315034083,-151.0,0.00018624,2]
[364932177,1749315034094,-288.0,0.00018625,4]
[364932179,1749315034105,-821.040408,0.00018634,2]
[364932181,1749315034116,-821.040408,0.00018634,2]
[364932183,1749315034126,-150.0,0.00018637,2]
[364932185,1749315034137,-150.0,0.00018638,2]
[364932187,1749315034147,-150.0,0.00018638,2]
[364932189,1749315034159,-500.0,0.00018638,2]
[364932191,1749315034170,-150.0,0.00018638,2]
[364932193,1749315034180,-150.0,0.00018638,2]
[364932195,1749315034190,-150.0,0.00018638,2]
[364932197,1749315034201,-150.0,0.00018638,2]
[364932199,1749315034211,-150.0,0.00018638,2]
[364932201,1749315034221,-150.0,0.00018638,2]
[364932203,1749315034231,-150.0,0.00018638,2]
[364932205,1749315034242,-3014.0,0.00018638,2]
[364932207,1749315034253,-150.0,0.00018638,2]
[364932209,1749315034265,-500.0,0.00018638,2]
[364932212,1749315034276,-150.0,0.00018638,2]
[364932214,1749315034288,-1110.0,0.00018638,2]
[364932216,1749315034298,-158.059182,0.00018648,2]
[364932218,1749315034309,-151.0,0.00018648,2]
[364932220,1749315034319,-151.0,0.00018648,2]
[364932222,1749315034330,-151.0,0.00018648,2]
[364932224,1749315034340,-151.0,0.00018648,2]
[364932226,1749315034350,-151.0,0.00018648,2]
[364932228,1749315034361,-151.0,0.00018648,2]
[364932230,1749315034371,-151.0,0.00018648,2]
[364932232,1749315034382,-151.0,0.00018648,2]
[364932234,1749315034392,-151.0,0.00018648,2]
[364932236,1749315034405,-167.04956,0.00018648,2]
[364932238,1749315034415,-167.04956,0.00018648,2]
[364932240,1749315034426,-151.0,0.00018648,2]
[364932242,1749315034435,-151.0,0.00018648,2]
[364932244,1749315034447,-167.04956,0.00018648,2]
[364932246,1749315034456,-167.04956,0.00018648,2]
[364932248,1749315034468,-274.637008,0.00018648,2]
[364932250,1749315034478,-797.913014,0.00018648,2]
[364932252,1749315034488,-797.913014,0.00018648,2]
[364932254,1749315034499,-797.913014,0.00018648,2]
[364932255,1749315034510,-797.913014,0.00018648,2]
[364932256,1749315034519,-151.0,0.00018648,2]
[364932257,1749315034529,-280.007193,0.00018648,2]
[364932258,1749315034540,-151.0,0.00018648,2]
[364932259,1749315034550,-151.0,0.00018648,2]
[364932260,1749315034560,-776.177693,0.00018648,2]
[364932261,1749315034570,-776.177693,0.00018648,2]
[364932262,1749315034581,-776.177693,0.00018648,2]
[364932263,1749315034591,-776.177693,0.00018648,2]
[364932264,1749315034601,-451.253257,0.00018648,2]
[364932266,1749315034611,-451.253257,0.00018648,2]
[364932267,1749315034620,-451.253257,0.00018648,2]
[364932268,1749315034630,-451.253257,0.00018648,2]
[364932269,1749315034640,-1041.973618,0.00018648,2]
[364932270,1749315034651,-1041.973618,0.00018648,2]
[364932271,1749315034661,-1041.973618,0.00018648,2]
[364932272,1749315034671,-1041.973618,0.00018648,2]
[364932273,1749315034682,-500.0,0.00018648,2]
[364932274,1749315034691,-500.0,0.00018648,2]
[364932275,1749315034703,-500.0,0.00018648,2]
[364932276,1749315034713,-500.0,0.00018648,2]
[364932277,1749315034723,-151.0,0.00018648,2]
[364932278,1749315034733,-171.270229,0.00018648,2]
[364932279,1749315034743,-171.270229,0.00018648,2]
[364932280,1749315034753,-171.270229,0.00018648,2]
[364932281,1749315034762,-171.270229,0.00018648,2]
[364932282,1749315034772,-821.040408,0.00018648,2]
[364932283,1749315034783,-821.040408,0.00018648,2]
[364932284,1749315034794,-151.0,0.00018648,2]
[364932285,1749315034805,-151.0,0.00018648,2]
[364932286,1749315034815,-151.0,0.00018648,2]
[364932287,1749315034825,-813.151626,0.00018648,2]
[364932288,1749315034836,-813.151626,0.00018648,2]
[364932289,1749315034846,-151.0,0.00018648,2]
[364932290,1749315034856,-461.04,0.00018656,2]
[364932291,1749315034866,-460.84,0.00018656,2]
[364932292,1749315034876,-151.0,0.00018665,2]
[364932293,1749315034886,-151.0,0.00018665,2]
[364932294,1749315034896,-9464.95259345,0.00018665,2]
[364932295,1749315034906,-150.0,0.00018666,2]
[364932296,1749315034916,-200.0,0.00018666,2]
[364932297,1749315034926,-500.0,0.00018666,2]
[364932298,1749315034937,-200.0,0.00018666,2]
[364932299,1749315034947,-200.0,0.00018666,2]
[364932300,1749315034957,-150.0,0.00018666,2]
[364932301,1749315034967,-200.0,0.00018666,2]
[364932302,1749315034978,-200.0,0.00018666,2]
[364932303,1749315034988,-200.0,0.00018666,2]
[364932304,1749315034998,-200.0,0.00018666,2]
[364932305,1749315035008,-3014.0,0.00018666,2]
[364932306,1749315035018,-150.0,0.00018666,2]
[364932307,1749315035028,-500.0,0.00018666,2]
[364932308,1749315035038,-200.0,0.00018666,2]
[364932309,1749315035048,-1110.0,0.00018666,2]
[364932310,1749315035058,-150.0,0.0001867,2]
[364932311,1749315035068,-151.0,0.0001867,2]
[364932312,1749315035078,-151.0,0.0001867,2]
[364932313,1749315035089,-151.0,0.0001867,2]
[364932314,1749315035099,-151.0,0.0001867,2]
[364932315,1749315035109,-151.0,0.0001867,2]
[364932316,1749315035119,-500.0,0.00018673,2]
[364932317,1749315035129,-170.32173904,0.00018673,2]
[364932318,1749315035138,-500.0,0.00018673,2]
[364932319,1749315035148,-500.0,0.00018673,2]
[364932320,1749315035158,-159.855648,0.00018673,2]
[364932321,1749315035167,-159.855648,0.00018673,2]
[364932322,1749315035177,-504.26120495,0.00018673,2]
[364932323,1749315035187,-159.855648,0.00018673,2]
[364932324,1749315035197,-159.855648,0.00018673,2]
[364932325,1749315035207,-159.855648,0.00018673,2]
[364932326,1749315035218,-159.855648,0.00018673,2]
[364932327,1749315035227,-159.855648,0.00018673,2]
[364932328,1749315035237,-499.5489,0.00018673,2]
[364932329,1749315035247,-159.855648,0.00018673,2]
[364932330,1749315035257,-159.855648,0.00018673,2]
[364932331,1749315035268,-500.0,0.00018673,2]
[364932332,1749315035278,-500.0,0.00018673,2]
[364932333,1749315035289,-500.0,0.00018673,2]
[364932334,1749315035299,-386.69184376,0.00018673,2]
[364932335,1749315035309,-151.0,0.00018673,2]
[364932336,1749315035319,-290.031704,0.00018673,2]
[364932337,1749315035329,-151.0,0.00018673,2]
[364932338,1749315035338,-165.510456,0.00018675,2]